bitfinex/quotes_SOLUSD_20220128
["timestamp","ask_amount","ask_price","bid_price","bid_amount"]
[1643339397241,0.25,91.868,91.792,110.35]
[1643339397838,0.46797469,91.886,91.793,2.04823141]
[1643339398039,3.02540339,91.885,91.804,38.94380774]
[1643339398240,0.25,91.884,91.81,13.16]
[1643339398741,3.02595664,91.883,91.81,13.16]
[1643339398941,3.02595664,91.883,91.805,22.7877]
[1643339399142,3.20669142,91.882,91.805,22.7877]
[1643339399342,6.0,91.873,91.805,22.7877]
[1643339399544,9.02595664,91.872,91.805,22.7877]
[1643339399743,3.02595664,91.871,91.805,22.7877]
[1643339399952,3.27595664,91.871,91.805,22.7877]
[1643339400143,16.3481,91.87,91.805,22.7877]
[1643339400346,0.25,91.869,91.805,22.7877]
[1643339400544,3.27595664,91.869,91.805,22.7877]
[1643339400744,3.02595664,91.868,91.805,22.7877]
[1643339401146,0.25,91.867,91.805,22.7877]
[1643339401346,3.02595664,91.866,91.805,22.7877]
[1643339401752,0.25,91.865,91.805,22.7877]
[1643339401946,3.02595664,91.864,91.805,22.7877]
[1643339402350,0.25,91.863,91.805,22.7877]
[1643339402550,3.02595664,91.862,91.805,22.7877]
[1643339402749,0.25,91.861,91.805,22.7877]
[1643339403155,0.25,91.861,91.794,110.1]
[1643339403351,0.25,91.861,91.79,13.16]
[1643339403352,16.3499,91.86,91.79,13.16]
[1643339403753,3.27663993,91.859,91.79,13.16]
[1643339404052,3.02663993,91.858,91.79,13.16]
[1643339404276,0.25,91.857,91.79,13.16]
[1643339404474,3.20669142,91.857,91.79,13.16]
[1643339404773,3.02663993,91.856,91.79,13.16]
[1643339404974,3.02663993,91.856,91.77,41.27378694]
[1643339405180,0.25,91.855,91.78,15.71]
[1643339405376,16.3524,91.84,91.78,15.71]
[1643339405775,0.25,91.839,91.78,15.71]
[1643339408481,16.3552,91.83,91.78,15.71]
[1643339408877,0.25,91.829,91.78,15.71]
[1643339409480,0.25,91.829,91.781,35.04032803]
[1643339409680,0.25,91.829,91.78,15.71]
[1643339409879,3.02696586,91.852,91.78,15.71]
[1643339410285,16.3506,91.85,91.76,15.71]
[1643339410681,3.2789542,91.849,91.76,15.71]
[1643339410881,3.0289542,91.848,91.761,35.50517126]
[1643339411286,0.25,91.847,91.761,35.50517126]
[1643339411483,3.0289542,91.846,91.761,35.50517126]
[1643339411889,0.25,91.845,91.761,35.50517126]
[1643339412083,3.0289542,91.844,91.761,35.50517126]
[1643339412285,0.25,91.843,91.761,35.50517126]
[1643339412484,3.0289542,91.842,91.761,35.50517126]
[1643339412684,16.3537,91.84,91.761,35.50517126]
[1643339412886,0.25,91.839,91.761,35.50517126]
[1643339415687,22.3552,91.83,91.76,15.71]
[1643339415886,0.25,91.829,91.76,15.71]
[1643339416089,6.0,91.828,91.76,15.71]
[1643339416285,6.0,91.828,91.746,24.8311]
[1643339416286,6.0,91.82,91.746,24.8311]
[1643339416787,0.25,91.819,91.746,24.8311]
[1643339418888,16.3572,91.82,91.746,24.8311]
[1643339419087,3.02696586,91.837,91.75,15.71]
[1643339419287,16.3526,91.85,91.751,0.25]
[1643339419490,16.3526,91.85,91.751,112.3887948]
[1643339419685,16.3526,91.85,91.752,2.0387948]
[1643339419887,16.3526,91.85,91.753,0.25]
[1643339420089,3.02696586,91.86,91.753,0.25]
[1643339420285,3.02696586,91.864,91.754,2.0387948]
[1643339420485,3.02696586,91.867,91.764,6.0]
[1643339420690,3.02696586,91.876,91.771,110.1]
[1643339420886,3.02696586,91.876,91.773,110.1]
[1643339421085,6.0,91.866,91.772,48.98893277]
[1643339421286,0.25,91.865,91.772,48.73893277]
[1643339421488,0.25,91.865,91.772,46.70013797]
[1643339421687,0.71264779,91.865,91.772,46.70013797]
[1643339421886,3.02475669,91.864,91.772,46.70013797]
[1643339422288,16.3499,91.86,91.772,46.70013797]
[1643339422688,0.25,91.859,91.772,46.70013797]
[1643339423291,0.25,91.859,91.773,110.1]
[1643339423689,0.25,91.859,91.774,2.2887948]
[1643339423888,0.71264779,91.865,91.774,2.2887948]
[1643339424089,0.71264779,91.865,91.775,2.0387948]
[1643339424290,0.46264779,91.865,91.79,15.71]
[1643339424689,1.51272336,91.849,91.79,15.71]
[1643339424890,0.25,91.848,91.79,15.71]
[1643339425091,1.51272336,91.847,91.79,15.71]
[1643339425296,0.25,91.846,91.79,15.71]
[1643339425493,0.25,91.846,91.791,110.1]
[1643339425692,0.25,91.846,91.79,15.71]
[1643339426191,1.76272336,91.846,91.79,15.71]
[1643339426394,0.25,91.846,91.79,15.71]
[1643339426591,1.97574292,91.846,91.79,15.71]
[1643339426792,0.46301956,91.846,91.791,2.29673613]
[1643339426993,0.46301956,91.846,91.801,6.0]
[1643339427192,0.46301956,91.846,91.81,15.71]
[1643339427693,0.46301956,91.846,91.812,110.1]
[1643339427891,0.46301956,91.846,91.811,24.0043]
[1643339428093,0.46301956,91.846,91.81,15.71]
[1643339428697,0.46301956,91.846,91.79,15.71]
[1643339429292,1.97574292,91.846,91.79,15.71]
[1643339429492,0.46301956,91.846,91.79,15.71]
[1643339429695,0.25,91.845,91.791,46.79296201]
[1643339429893,0.46301956,91.846,91.791,46.79296201]
[1643339431496,2.22636259,91.849,91.791,46.79296201]
[1643339433398,1.51272336,91.845,91.791,46.79296201]
[1643339433901,0.25,91.844,91.791,46.79296201]
[1643339434099,1.76272336,91.844,91.791,46.79296201]
[1643339434599,0.25,91.844,91.791,46.79296201]
[1643339434998,1.51272336,91.843,91.791,46.79296201]
[1643339435200,1.51272336,91.843,91.79,15.71]
[1643339435398,1.51272336,91.841,91.79,15.71]
[1643339435600,1.51272336,91.839,91.79,15.71]
[1643339435800,0.25,91.838,91.79,15.71]
[1643339436000,0.25,91.838,91.75,212.7023]
[1643339436202,1.51272336,91.82,91.74,15.71]
[1643339436405,0.25,91.838,91.74,15.71]
[1643339436406,16.3591,91.81,91.74,15.71]
[1643339436600,16.3591,91.81,91.701,45.2141]
[1643339436802,1.51272336,91.795,91.701,45.2141]
[1643339437005,1.51272336,91.794,91.702,110.1]
[1643339437206,1.51272336,91.793,91.702,110.1]
[1643339437405,1.51272336,91.793,91.712,6.0]
[1643339437603,0.25,91.792,91.713,29.0316]
[1643339438406,0.25,91.792,91.714,110.1]
[1643339438606,0.25,91.792,91.713,29.0316]
[1643339438804,0.25,91.795,91.713,29.0316]
[1643339439206,1.76272336,91.797,91.713,29.0316]
[1643339439605,1.51272336,91.795,91.714,6.0]
[1643339439808,0.25,91.794,91.713,29.0316]
[1643339441008,1.76272336,91.798,91.713,29.0316]
[1643339441209,1.76272336,91.798,91.714,110.1]
[1643339441610,0.45644736,91.793,91.714,110.1]
[1643339443011,0.45644736,91.793,91.713,45.62]
[1643339443412,16.3625,91.79,91.713,45.62]
[1643339443813,0.25,91.789,91.713,45.62]
[1643339445539,0.45644736,91.793,91.713,45.62]
[1643339445738,0.45644736,91.793,91.721,110.1]
[1643339445938,0.45644736,91.793,91.73,15.71]
[1643339446138,0.45644736,91.793,91.741,110.1]
[1643339446437,0.45644736,91.793,91.75,15.71]
[1643339446641,0.45582695,91.829,91.75,15.71]
[1643339446841,0.45582695,91.829,91.751,110.35]
[1643339447041,0.45582695,91.829,91.751,112.14659793]
[1643339447242,0.45582695,91.829,91.75,15.71]
[1643339447439,1.96855031,91.829,91.752,2.04659793]
[1643339447739,1.51272336,91.828,91.752,2.04659793]
[1643339447939,1.76272336,91.828,91.752,2.04659793]
[1643339448540,1.51272336,91.827,91.752,2.04659793]
[1643339448740,0.25,91.828,91.75,15.71]
[1643339449040,0.25,91.826,91.751,2.04659793]
[1643339449244,0.25,91.826,91.75,15.71]
[1643339449642,0.25,91.826,91.75,17.75659793]
[1643339450041,0.25,91.828,91.761,35.28727005]
[1643339450645,2.21855031,91.829,91.761,35.28727005]
[1643339451544,0.46066436,91.827,91.761,35.28727005]
[1643339452546,0.46066436,91.827,91.762,2.04659793]
[1643339452943,0.46066436,91.827,91.762,112.14659793]
[1643339453145,0.46066436,91.827,91.77,15.71]
[1643339453346,0.46066436,91.827,91.771,110.35]
[1643339453545,0.46066436,91.827,91.77,15.71]
[1643339453845,0.46066436,91.827,91.761,35.28727005]
[1643339454549,0.46066436,91.827,91.771,6.0]
[1643339455044,0.46066436,91.827,91.772,6.0]
[1643339456746,2.33858434,91.86,91.773,0.25]
[1643339456949,47.3745,91.929,91.78,15.71]
[1643339457153,3.01929723,91.892,91.782,149.06885616]
[1643339457348,4.52894584,91.928,91.8,196.37]
[1643339457551,4.52894584,91.928,91.783,0.25]
[1643339457552,4.52894584,91.928,91.811,47.0093372]
[1643339457848,4.52894584,91.928,91.82,212.08]
[1643339458048,4.52894584,91.928,91.82,16.333]
[1643339458248,4.52894584,91.928,91.683,4.2988447]
[1643339458448,84.12971645,91.927,91.782,46.6697]
[1643339458649,16.3405,91.92,91.782,46.6697]
[1643339458850,3.01929723,91.919,91.782,46.6697]
[1643339459049,3.01929723,91.925,91.79,16.3364]
[1643339459248,3.01929723,91.925,91.8,15.71]
[1643339459451,3.01929723,91.939,91.802,49.49451201]
[1643339459651,3.01929723,91.924,91.81,6.0]
[1643339459850,16.3369,91.93,91.82,15.71]
[1643339460051,3.01929723,91.929,91.831,45.70492052]
[1643339460251,0.25,91.928,91.831,45.70492052]
[1643339460449,3.01929723,91.927,91.831,45.70492052]
[1643339460852,0.25,91.926,91.832,2.30469431]
[1643339461052,0.25,91.926,91.832,2.05469431]
[1643339461251,3.01824531,91.925,91.832,2.05469431]
[1643339461454,3.01824531,91.925,91.832,112.15469431]
[1643339461650,0.25,91.924,91.832,112.15469431]
[1643339462052,3.01824531,91.923,91.833,0.25]
[1643339462256,0.25,91.922,91.833,2.30469431]
[1643339462654,0.25,91.922,91.832,110.1]
[1643339463355,2.95669142,91.921,91.831,45.70492052]
[1643339463554,6.0,91.911,91.831,45.70492052]
[1643339463754,0.25,91.91,91.831,45.70492052]
[1643339463955,3.20669142,91.91,91.831,45.70492052]
[1643339464258,9.20669142,91.91,91.81,15.71]
[1643339464455,16.3428,91.9,91.81,15.71]
[1643339464860,0.25,91.899,91.81,15.71]
[1643339465155,0.25,91.899,91.811,49.05301132]
[1643339465356,0.25,91.899,91.812,0.25]
[1643339465758,0.25,91.907,91.821,6.0]
[1643339465957,0.25,91.907,91.822,110.1]
[1643339466158,0.25,91.907,91.822,110.35]
[1643339467360,0.25,91.907,91.82,15.71]
[1643339469359,0.25,91.907,91.821,112.40469431]
[1643339469559,6.0,91.923,91.832,37.96023361]
[1643339469759,16.3397,91.92,91.833,110.35]
[1643339469963,16.3397,91.92,91.832,37.96023361]
[1643339470860,0.25,91.919,91.832,37.96023361]
[1643339471260,0.25,91.919,91.833,110.1]
[1643339472862,6.0,91.91,91.833,110.1]
[1643339473460,16.3397,91.92,91.833,110.1]
[1643339474061,6.0,91.91,91.833,110.1]
[1643339474261,0.25,91.909,91.833,110.1]
[1643339474760,6.25,91.909,91.833,110.1]
[1643339475562,6.25,91.909,91.832,37.96023361]
[1643339476562,6.25,91.909,91.833,110.35]
[1643339476964,6.25,91.909,91.832,37.96023361]
[1643339477565,6.0,91.9,91.832,37.96023361]
[1643339477870,0.25,91.899,91.832,37.96023361]
[1643339479691,0.25,91.899,91.83,15.71]
[1643339479892,2.95669142,91.898,91.79,15.71]
[1643339480094,6.0,91.888,91.79,15.71]
[1643339480291,0.25,91.887,91.78,31.8645]
[1643339480596,6.0,91.887,91.803,42.69299431]
[1643339480794,6.0,91.887,91.804,22.5196]
[1643339481598,6.0,91.88,91.78,15.71]
[1643339481893,3.26782499,91.879,91.78,15.71]
[1643339482093,6.0,91.869,91.79,6.0]
[1643339482292,0.25,91.868,91.79,6.0]
[1643339482493,0.25,91.868,91.791,35.0042339]
[1643339483298,16.3489,91.86,91.78,15.71]
[1643339483696,0.25,91.859,91.78,15.71]
[1643339484300,0.25,91.859,91.781,37.30062221]
[1643339486397,16.3489,91.86,91.781,37.30062221]
[1643339487199,24.5695,91.874,91.782,0.25]
[1643339487397,24.5695,91.874,91.782,23.4385]
[1643339487597,6.0,91.864,91.782,23.1885]
[1643339488301,6.0,91.864,91.783,110.1]
[1643339488706,0.25,91.863,91.782,23.1885]
[1643339489500,3.02558308,91.862,91.782,23.1885]
[1643339489700,0.25,91.863,91.782,23.1885]
[1643339490299,16.3499,91.86,91.782,23.1885]
[1643339490700,0.25,91.859,91.782,23.1885]
[1643339491004,110.35,91.859,91.782,23.1885]
[1643339492700,0.25,91.859,91.782,23.1885]
[1643339492901,0.25,91.859,91.783,110.35]
[1643339493102,16.3455,91.88,91.783,110.35]
[1643339493302,6.0,91.864,91.783,112.40469431]
[1643339493505,16.3455,91.88,91.783,112.40469431]
[1643339493702,16.3455,91.88,91.784,2.05469431]
[1643339494304,3.02482029,91.879,91.782,23.1885]
[1643339494504,3.02482029,91.879,91.783,110.1]
[1643339494704,0.25,91.878,91.783,112.40469431]
[1643339494907,0.25,91.878,91.783,110.1]
[1643339495204,3.02461748,91.877,91.783,110.1]
[1643339495405,0.25,91.876,91.783,110.1]
[1643339495605,3.02461748,91.875,91.783,110.1]
[1643339495805,6.0,91.869,91.783,110.1]
[1643339496207,0.25,91.868,91.783,110.1]
[1643339496406,0.25,91.874,91.783,110.1]
[1643339496606,0.25,91.874,91.783,112.15469431]
[1643339496807,4.52894584,91.908,91.784,0.25]
[1643339497006,4.52894584,91.908,91.793,6.0]
[1643339497207,16.3422,91.91,91.8,15.71]
[1643339497408,3.02460061,91.896,91.801,41.78564187]
[1643339497606,3.02460061,91.896,91.811,6.0]
[1643339497809,3.02460061,91.896,91.812,23.0608]
[1643339498011,0.25,91.895,91.812,23.0608]
[1643339498218,3.02460061,91.894,91.81,15.71]
[1643339498613,0.25,91.893,91.81,15.71]
[1643339498811,3.02460061,91.892,91.81,15.71]
[1643339499014,6.0,91.886,91.81,15.71]
[1643339499212,16.3466,91.88,91.777,2.05469431]
[1643339499411,25.56250061,91.879,91.79,15.71]
[1643339499611,3.02460061,91.878,91.79,15.71]
[1643339499811,6.0,91.869,91.79,15.71]
[1643339500012,6.0,91.868,91.79,15.71]
[1643339500212,9.02460061,91.868,91.795,40.15649838]
[1643339500510,0.25,91.867,91.795,40.15649838]
[1643339500912,6.0,91.86,91.795,40.15649838]
[1643339501413,0.00189263,92.043,91.795,40.15649838]
[1643339501414,16.344,91.9,91.8,15.71]
[1643339501614,16.344,91.9,91.805,6.0]
[1643339501815,3.27655804,91.896,91.811,44.94941863]
[1643339502216,3.02655804,91.895,91.811,44.94941863]
[1643339502414,3.02655804,91.895,91.812,23.8901]
[1643339502613,0.25,91.894,91.812,23.8901]
[1643339502815,3.02655804,91.893,91.812,23.8901]
[1643339503215,0.25,91.892,91.812,23.8901]
[1643339503418,3.02655804,91.891,91.813,110.1]
[1643339503914,0.25,91.89,91.813,110.1]
[1643339504115,3.02655804,91.889,91.812,23.8901]
[1643339504313,0.25,91.888,91.811,44.94941863]
[1643339504515,3.02655804,91.887,91.811,44.94941863]
[1643339504816,0.25,91.886,91.811,44.94941863]
[1643339505016,3.02655804,91.885,91.811,44.94941863]
[1643339505218,3.02655804,91.885,91.812,23.8823]
[1643339505439,0.25,91.884,91.812,23.8823]
[1643339505619,3.02655804,91.883,91.812,23.8823]
[1643339505815,0.25,91.882,91.812,23.8823]
[1643339506616,4.52894584,91.918,91.812,23.8823]
[1643339506919,3.02729362,91.929,91.822,6.0]
[1643339507118,59.33365418,91.96,91.823,110.1]
[1643339507326,10.44891395,91.96,91.85,196.37]
[1643339507621,4.54094043,91.989,91.93,2.04920674]
[1643339507820,16.3261,92.0,91.93,2.04920674]
[1643339507821,16.3261,92.0,91.931,13.87167495]
[1643339508029,4.54094043,92.008,91.941,6.0]
[1643339508620,39.87835328,92.009,91.951,110.1]
[1643339509019,39.87835328,92.009,91.961,6.0]
[1643339509619,39.87835328,92.009,91.96,15.71]
[1643339509821,39.87835328,92.009,91.911,23.7109]
[1643339509822,39.87835328,92.009,91.94,15.71]
[1643339510021,39.87835328,92.009,91.92,15.71]
[1643339510022,20.44883616,92.008,91.92,15.71]
[1643339510222,2.95669142,92.008,91.921,6.0]
[1643339510622,0.00189263,92.022,91.931,110.1]
[1643339510824,0.00189263,92.028,91.94,15.71]
[1643339511020,0.00189263,92.028,91.95,6.0]
[1643339511223,23.27754783,92.12,91.95,6.0]
[1643339511224,2.95669142,92.045,91.96,15.71]
[1643339511423,17.49214474,92.062,91.98,196.37]
[1643339511723,17.49214474,92.107,91.991,16.90996394]
[1643339512121,17.49214474,92.107,92.001,6.0]
[1643339512422,16.3076,92.1,92.011,1.98941453]
[1643339512620,15.3076,92.1,92.021,6.0]
[1643339513426,17.49214474,92.107,92.031,15.76973643]
[1643339513626,37.98097883,92.096,92.031,15.76973643]
[1643339514226,37.98097883,92.096,92.032,0.25]
[1643339514627,17.49214474,92.126,92.032,0.25]
[1643339514831,17.49214474,92.126,92.041,6.0]
[1643339515029,17.49214474,92.126,92.05,15.71]
[1643339515229,16.3012,92.13,92.05,15.71]
[1643339515629,36.8469055,92.129,92.051,3.12964204]
[1643339516532,36.8469055,92.129,92.05,15.71]
[1643339516729,6.0,92.119,92.01,15.71]
[1643339516930,6.0,92.119,92.0,15.71]
[1643339517139,9.20669142,92.118,92.0,15.71]
[1643339517334,25.73105838,92.118,92.0,15.71]
[1643339517532,19.48105838,92.117,92.001,17.89194647]
[1643339517733,16.3095,92.09,92.001,17.89194647]
[1643339517932,48.11028862,92.089,92.001,17.89194647]
[1643339518134,48.36028862,92.089,92.011,6.0]
[1643339518736,48.36028862,92.089,92.021,1.007432]
[1643339519536,6.0,92.118,92.021,1.007432]
[1643339519740,6.0,92.118,92.031,6.0]
[1643339519935,6.0,92.11,92.04,15.71]
[1643339520136,6.0,92.118,92.04,15.71]
[1643339520553,39.92456779,92.117,92.041,13.2362066]
[1643339520754,39.92456779,92.117,92.04,15.71]
[1643339520952,6.0,92.107,92.04,15.71]
[1643339521352,6.0,92.106,92.04,15.71]
[1643339521855,0.25,92.105,92.04,15.71]
[1643339522353,16.3074,92.1,92.04,15.71]
[1643339522553,42.2609219,92.099,92.04,15.71]
[1643339522953,22.9161,92.128,92.04,15.71]
[1643339523153,6.0,92.118,92.04,15.71]
[1643339523956,16.3059,92.11,92.04,15.71]
[1643339524158,111.9,92.153,92.04,15.71]
[1643339524360,188.4,92.177,92.041,2.30724492]
[1643339524558,47.5001,92.21,92.051,6.0]
[1643339524759,35.3195405,92.207,92.052,0.25]
[1643339524973,16.52436696,92.212,92.06,16.289]
[1643339525158,16.52436696,92.232,92.061,70.8167]
[1643339525357,16.52436696,92.232,92.1,54.2593]
[1643339525557,16.52436696,92.232,92.11,15.71]
[1643339525761,47.1241,92.249,92.111,0.25]
[1643339525958,44.94701173,92.231,92.12,6.0]
[1643339526158,47.90370315,92.231,92.12,21.71]
[1643339526359,2.95669142,92.23,92.12,21.71]
[1643339526558,3.05669142,92.23,92.121,0.25]
[1643339526758,0.1,92.23,92.121,0.25]
[1643339526961,3.05669142,92.23,92.092,133.5193]
[1643339527159,19.34169142,92.23,92.092,23.4193]
[1643339527458,19.34169142,92.23,92.102,6.0]
[1643339527459,38.12174271,92.229,92.102,6.0]
[1643339527659,6.0,92.22,92.11,15.71]
[1643339527860,6.0,92.219,92.11,15.71]
[1643339528064,6.0,92.218,92.12,6.0]
[1643339528268,45.2763721,92.217,92.12,6.0]
[1643339528467,6.0,92.207,92.092,23.4193]
[1643339528668,6.0,92.207,91.881,33.44]
[1643339528865,6.0,92.207,91.868,4.2988447]
[1643339528866,47.9337,92.206,92.062,47.4242]
[1643339529166,0.1,92.205,92.07,13.04]
[1643339529373,17.24803362,92.241,92.099,0.32427395]
[1643339529573,4.54094043,92.324,92.099,0.32427395]
[1643339529772,16.2713,92.3,92.15,163.02]
[1643339529972,16.2713,92.3,92.16,176.06]
[1643339530272,16.2713,92.3,92.17,13.04]
[1643339530273,40.3196772,92.299,92.17,13.04]
[1643339530474,40.3196772,92.299,92.17,19.04]
[1643339530872,16.2785,92.27,92.171,6.0]
[1643339531073,39.99421377,92.269,92.171,6.0]
[1643339531273,40.24421377,92.269,92.171,6.0]
[1643339531574,40.24421377,92.269,92.17,13.04]
[1643339531985,16.2796,92.26,92.17,13.04]
[1643339532385,0.25,92.259,92.17,13.04]
[1643339533288,45.52888738,92.239,92.17,13.04]
[1643339533487,45.52888738,92.239,92.17,12.54]
[1643339534588,0.1,92.238,92.17,12.54]
[1643339534791,16.2844,92.23,92.17,12.54]
[1643339534989,0.1,92.229,92.15,13.04]
[1643339535188,0.35,92.229,92.15,13.04]
[1643339535595,0.25,92.229,92.107,2.06600514]
[1643339535889,0.25,92.229,92.075,47.3716]
[1643339535890,0.30790214,92.227,92.08,13.04]
[1643339536090,16.2866,92.22,92.08,13.04]
[1643339536290,0.31485781,92.203,92.06,13.04]
[1643339536690,0.31871055,92.176,92.06,13.04]
[1643339537192,40.60250376,92.202,92.06,13.04]
[1643339537392,36.84067358,92.169,92.06,13.04]
[1643339537792,36.84067358,92.169,92.061,2.31046608]
[1643339537793,0.25,92.168,92.061,2.31046608]
[1643339538190,0.25,92.168,92.062,2.06046608]
[1643339538391,0.25,92.168,92.063,0.25]
[1643339538793,0.25,92.168,92.064,2.06046608]
[1643339538994,0.25,92.168,92.063,0.25]
[1643339539213,0.15210572,92.168,92.063,0.25]
[1643339539414,0.15210572,92.168,92.064,2.0550388]
[1643339539813,0.15210572,92.168,92.065,0.25]
[1643339540018,0.15210572,92.168,92.074,6.0]
[1643339540216,0.15210572,92.168,92.08,13.04]
[1643339540615,16.2959,92.16,92.08,13.04]
[1643339541515,36.84067358,92.169,92.081,0.25]
[1643339541715,36.84067358,92.169,92.09,6.0]
[1643339542015,36.84067358,92.169,92.1,13.04]
[1643339542417,36.84067358,92.169,92.101,110.35]
[1643339542617,36.84067358,92.169,92.101,112.1550388]
[1643339542815,36.84067358,92.169,92.101,110.1]
[1643339543820,36.84067358,92.169,92.102,0.25]
[1643339544017,36.84067358,92.169,92.101,110.1]
[1643339544221,16.2901,92.2,92.101,110.1]
[1643339544718,16.2901,92.2,92.112,110.1]
[1643339544919,16.2901,92.2,92.12,13.04]
[1643339545322,37.67676589,92.199,92.12,13.04]
[1643339546323,0.25,92.198,92.12,13.04]
[1643339546521,37.67676589,92.199,92.12,13.04]
[1643339546925,16.2915,92.19,92.12,13.04]
[1643339547825,0.25,92.189,92.12,13.04]
[1643339548021,16.2934,92.18,92.12,13.04]
[1643339548222,35.49279356,92.179,92.12,13.04]
[1643339548421,35.74279356,92.179,92.12,13.04]
[1643339549223,35.74279356,92.179,92.1,13.04]
[1643339549622,2.99408091,92.176,92.1,13.04]
[1643339549823,16.2951,92.17,92.1,13.04]
[1643339550223,0.25,92.169,92.1,13.04]
[1643339550925,2.99408091,92.167,92.1,13.04]
[1643339551124,3.24408091,92.169,92.1,13.04]
[1643339551323,16.2978,92.15,92.1,13.04]
[1643339551525,41.67274308,92.149,92.1,13.04]
[1643339551724,41.92274308,92.149,92.03,163.02]
[1643339551925,41.92274308,92.149,92.012,48.9652]
[1643339552126,44.91682399,92.149,92.05,13.04]
[1643339552325,16.302,92.13,92.05,13.04]
[1643339552527,2.99408091,92.147,92.054,2.05406425]
[1643339552727,41.67274308,92.149,92.054,20.20851352]
[1643339552928,41.67274308,92.149,92.055,110.35]
[1643339553125,41.67274308,92.149,92.07,13.04]
[1643339553827,44.66682399,92.149,92.07,13.04]
[1643339554126,41.67274308,92.149,92.07,13.04]
[1643339554330,0.25,92.148,92.07,13.04]
[1643339555733,2.99408091,92.141,92.07,13.04]
[1643339556136,0.25,92.14,92.07,13.04]
[1643339556338,16.5506,92.14,92.07,13.04]
[1643339556943,0.25,92.14,92.07,13.04]
[1643339557341,16.2996,92.14,92.07,13.04]
[1643339557741,0.25,92.139,92.07,13.04]
[1643339559964,16.3024,92.13,92.07,13.04]
[1643339560166,38.05984389,92.129,92.07,13.04]
[1643339560366,38.30984389,92.129,92.05,13.04]
[1643339561466,16.3043,92.12,92.05,13.04]
[1643339561867,0.25,92.119,92.05,13.04]
[1643339563769,16.3061,92.11,92.05,13.04]
[1643339563970,16.3061,92.11,91.98,163.02]
[1643339563971,157.10701466,92.109,91.98,163.02]
[1643339564173,6.0,92.1,92.0,13.04]
[1643339564469,6.25,92.099,91.98,13.04]
[1643339564669,2.99408091,92.097,91.98,13.04]
[1643339564871,45.77624298,92.091,91.98,13.04]
[1643339565069,2.99408091,92.088,91.98,13.04]
[1643339565271,16.3098,92.08,91.98,13.04]
[1643339565570,16.3098,92.08,91.98,15.10088717]
[1643339565770,0.25,92.079,91.98,15.10088717]
[1643339565973,0.25,92.079,91.98,13.04]
[1643339566372,0.25,92.079,91.981,2.30613143]
[1643339566773,0.25,92.079,91.982,2.05613143]
[1643339567176,16.3098,92.08,91.983,0.25]
[1643339567374,45.77624298,92.091,91.993,110.1]
[1643339567574,45.77624298,92.091,92.003,6.0]
[1643339567975,45.77624298,92.091,92.0,13.04]
[1643339569380,16.3101,92.08,92.0,13.04]
[1643339569780,0.25,92.079,92.001,0.25]
[1643339569981,45.77624298,92.091,92.001,110.35]
[1643339570180,0.25,92.079,92.001,110.35]
[1643339570380,0.25,92.079,92.0,13.04]
[1643339570580,57.36108091,92.11,92.001,0.25]
[1643339570783,2.99408091,92.115,92.001,0.25]
[1643339570981,2.99408091,92.129,92.01,6.0]
[1643339571184,2.99408091,92.132,92.02,13.04]
[1643339571381,2.99408091,92.131,92.021,24.6053]
[1643339571582,2.99408091,92.131,92.031,6.0]
[1643339571782,16.3029,92.12,92.04,13.04]